fUST/lending_fUST_20240809
["ID","MTS","AMOUNT","RATE_DAILY","PERIOD"]
[334489425,1723162242614,-207.1717265,0.00026849,2]
[334489426,1723162242623,-19128.54427291,0.000269,2]
[334489427,1723162242633,-3000.0,0.000269,2]
[334489428,1723162242642,-3000.0,0.0002691,2]
[334489429,1723162242652,-151.0,0.0002691,7]
[334489430,1723162242661,-151.0,0.0002691,7]
[334489431,1723162242670,-151.0,0.0002691,7]
[334489432,1723162242681,-213.479005,0.0002691,7]
[334489433,1723162242690,-213.479005,0.0002691,7]
[334489434,1723162242700,-151.0,0.0002691,7]
[334489435,1723162242709,-151.0,0.0002691,7]
[334489436,1723162242720,-168.878984,0.0002691,7]
[334489437,1723162242732,-168.878984,0.0002691,7]
[334489438,1723162242741,-151.0,0.0002691,7]
[334489439,1723162242751,-151.0,0.0002691,7]
[334489440,1723162242761,-151.0,0.0002691,7]
[334489441,1723162242771,-3000.0,0.0002692,2]
[334489442,1723162242780,-14440.98601694,0.0002692,2]
[334489443,1723162242792,-3000.0,0.0002693,2]
[334489444,1723162242802,-2430.56190712,0.0002694,2]
[334489445,1723162243144,-24.23914493,0.00019,2]
[334489466,1723162246870,-125.87308807,0.00019,2]
[334489469,1723162246879,-151.0,0.0002099,2]
[334489471,1723162246888,-215.861378,0.0002288,7]
[334489473,1723162246898,-207.1717265,0.00025616,2]
[334489475,1723162246908,-569.43809288,0.0002694,2]
[334489477,1723162246917,-3000.0,0.0002695,2]
[334489479,1723162246926,-424.11956059,0.0002696,2]
[334489481,1723162340578,218.58411,0.00014247,2]
[334489482,1723162403095,3372.89762307,0.00014247,2]
[334489492,1723163092753,5000.0,0.0001501,2]
[334489499,1723163300431,207.654904,0.00014247,2]
[334489500,1723163341711,2846.76378818,0.00015,2]
[334489501,1723163416535,543.08033701,9.999e-05,2]
[334489502,1723163429435,154.91692567,9.999e-05,2]
[334489549,1723163432046,-265.71719078,0.0001571,2]
[334489550,1723163432056,-154.98939785,0.00015712,2]
[334489551,1723163432066,-309.54690645,0.0001611,2]
[334489552,1723163432079,-902.7329499,0.00017784,2]
[334489553,1723163432089,-77.66543379,0.0001784,2]
[334489554,1723163432101,-1240.17266168,0.0001784,2]
[334489555,1723163432110,-250.24510648,0.00018122,2]
[334489556,1723163432123,-154.80649189,0.00018182,2]
[334489557,1723163432134,-3088.98876635,0.00019139,2]
[334489558,1723163432144,-273.82902561,0.00019167,2]
[334489559,1723163432153,-154.79876007,0.00019256,2]
[334489560,1723163432164,-215.69921839,0.00019451,2]
[334489561,1723163432173,-300.0,0.00019476,2]
[334489562,1723163432183,-300.0,0.00019476,2]
[334489563,1723163432194,-17.09503602,0.00019477,2]
[334489564,1723163432209,-329.16322832,0.00019477,2]
[334489577,1723163438183,-309.39678743,0.00019477,2]
[334489579,1723163438192,-15.98321257,0.00019477,2]
[334489581,1723163438206,-138.79236285,0.00019477,2]
[334489583,1723163438215,-168.516465,0.00019589,2]
[334489585,1723163438225,-222.53226068,0.0002,2]
[334489587,1723163438234,-140.20891147,0.0002,2]
[334489598,1723163440309,-1317.83809547,0.0001784,2]
[334489599,1723163440318,-16.21756181,0.0002,2]
[334489600,1723163440328,-1444.35779383,0.0002,2]
[334489601,1723163440337,-2509.78754524,0.0002,2]
[334489602,1723163440348,-427.19488527,0.0002,2]
[334489603,1723163440357,-294.2333485,0.0002,2]
[334489604,1723163440367,-13800.2620803,0.00020239,2]
[334489605,1723163440375,-301.12995539,0.0002028,2]
[334489606,1723163440384,-4717.11292081,0.00020607,2]
[334489607,1723163440394,-207.654904,0.00020707,2]
[334489608,1723163440403,-267.71738271,0.00020999,2]
[334489609,1723163440412,-297.10158311,0.00021,2]
[334489610,1723163440422,-420.0,0.00021424,2]
[334489611,1723163440432,-154.77557542,0.00021532,2]
[334489612,1723163440441,-881.97401853,0.0002217,2]
[334489613,1723163440450,-620.86174881,0.0002268,2]
[334489614,1723163440459,-587.0,0.00023566,2]
[334489615,1723163440469,-4717.11292078,0.00023569,2]
[334489616,1723163440478,-5261.47013064,0.00023626,2]
[334489617,1723163440488,-620.04308744,0.00023814,2]
[334489618,1723163440498,-500.0,0.00023868,2]
[334489619,1723163440508,-500.0,0.00023868,2]
[334489620,1723163440517,-500.0,0.00023868,2]
[334489621,1723163440526,-500.0,0.00023868,2]
[334489622,1723163440536,-500.0,0.00023868,2]
[334489623,1723163440545,-650.0,0.00023868,2]
[334489624,1723163440555,-5261.47013064,0.00023869,2]
[334489625,1723163440564,-4350.92455896,0.00024,30]
[334489626,1723163440573,-5261.47013064,0.00024189,2]
[334489627,1723163440583,-5261.47013064,0.00024561,2]
[334489628,1723163440592,-150.0,0.00024583,2]
[334489629,1723163440601,-153.0,0.00024741,2]
[334489630,1723163440610,-153.0,0.00024741,2]
[334489631,1723163440619,-153.0,0.00024741,2]
[334489632,1723163440629,-153.0,0.00024741,2]
[334489633,1723163440638,-153.0,0.00024741,2]
[334489634,1723163440648,-153.0,0.00024741,2]
[334489636,1723163440657,-153.0,0.00024741,2]
[334489638,1723163440667,-153.0,0.00024741,2]
[334489639,1723163440676,-153.0,0.00024741,2]
[334489640,1723163440685,-153.0,0.00024741,2]
[334489641,1723163440694,-153.0,0.00024741,2]
[334489642,1723163440703,-153.0,0.00024741,2]
[334489643,1723163440712,-153.0,0.00024741,2]
[334489644,1723163440722,-153.0,0.00024741,2]
[334489645,1723163440731,-5261.47013064,0.00024751,2]
[334489646,1723163440740,-153.0,0.00024932,2]
[334489647,1723163440749,-40013.46935851,0.00025,11]
[334489648,1723163440758,-402.58073778,0.00025,2]
[334489649,1723163440768,-23201.42953338,0.00025,30]
[334489650,1723163440777,-299.4439556,0.00025,2]
[334489651,1723163440786,-153.0,0.00025,2]
[334489652,1723163440796,-1855.52515125,0.00025,2]
[334489653,1723163440805,-1027.78654758,0.00025,2]
[334489654,1723163440815,-45217.61026187,0.00025,2]
[334489655,1723163440825,-3298.54011806,0.00025,2]
[334489656,1723163440834,-14775.32865644,0.00025,2]
[334489657,1723163440845,-620.00215437,0.00025005,2]
[334489658,1723163440854,-5261.47013064,0.00025169,2]
[334489659,1723163440864,-11663.51542929,0.00025312,2]
[334489660,1723163440873,-151.0,0.00025312,7]
[334489661,1723163440883,-151.0,0.00025312,7]
[334489662,1723163440892,-151.0,0.00025312,7]
[334489663,1723163440901,-151.0,0.00025312,7]
[334489664,1723163440911,-151.0,0.00025312,7]
[334489665,1723163440920,-151.0,0.00025312,7]
[334489666,1723163440930,-151.0,0.00025312,7]
[334489667,1723163440939,-151.0,0.00025342,7]
[334489668,1723163440950,-151.0,0.00025342,7]
[334489669,1723163440961,-151.0,0.00025342,7]
[334489670,1723163440971,-151.0,0.00025342,7]
[334489671,1723163440980,-151.0,0.00025342,7]
[334489672,1723163440989,-153.0,0.00025342,2]
[334489673,1723163440999,-153.0,0.00025342,2]
[334489674,1723163441008,-153.0,0.00025342,2]
[334489675,1723163441018,-153.0,0.00025342,2]
[334489676,1723163441027,-153.0,0.00025342,2]
[334489677,1723163441039,-306.0,0.00025342,2]
[334489678,1723163441049,-24138.18521855,0.00025382,3]
[334489761,1723163443169,-507.0,0.00024583,2]
[334489763,1723163443180,-153.0,0.00024741,2]
[334489765,1723163443191,-2880.13456255,0.0002499,3]
[334489767,1723163443226,-9748.39543745,0.0002499,3]
[334489768,1723163443236,-151.661857,0.00025342,7]
[334489769,1723163443246,-4189.56776325,0.00025382,3]
[334489770,1723163443255,-16631.5676423,0.00025402,3]
[334489865,1723163469811,738.76439626,0.0001212,2]
[334489866,1723163477652,300.45765344,0.0001212,2]
[334489867,1723163479704,961.97481851,0.00013,2]
[334489868,1723163479737,3602.88765659,0.0001212,2]
[334489869,1723163480388,203.80839218,0.0001212,2]
[334489870,1723163483300,652.95626155,0.0001212,2]
[334489871,1723163483429,201.51336171,0.0001212,2]
[334489872,1723163483464,686.59364774,0.00013,2]
[334489873,1723163486234,205.1880395,0.0001212,2]
[334489874,1723163487447,849.56796357,0.0001212,2]
[334489875,1723163492423,154.77557542,0.00014691,2]
[334489876,1723163498629,174.56235819,0.00014691,2]
[334489877,1723163536437,686.59364774,0.00014691,2]
[334489878,1723163558290,250.0,0.0001469,2]
[334489879,1723163581202,250.0,0.0001469,3]
[334489880,1723163617156,3602.88765659,0.0001469,2]
[334489881,1723164216888,2600.0,0.00025,60]
[334489883,1723164321581,186.889413,0.00014247,2]
[334489888,1723164594620,3286.54146647,0.00014247,2]
[334489949,1723164633550,-201.51336171,0.00015746,2]
[334489951,1723164633560,-200.0508314,0.00016347,2]
[334489953,1723164633570,-203.43579065,0.00016532,2]
[334489955,1723164633582,-97.69416474,0.00016532,2]
[334489957,1723164633593,-309.21151064,0.00016532,2]
[334489959,1723164633605,-288.33769885,0.00017019,2]
[334489962,1723164633615,-154.77557542,0.00017019,2]
[334489964,1723164633625,-156.99277567,0.00017019,2]
[334489966,1723164633635,-1.6543627,0.00017019,2]
[334489968,1723164633647,-178.43567336,0.00017019,2]
[334489970,1723164633657,-287.56432664,0.00017019,2]
[334489973,1723164633682,-69.75889625,0.00017019,2]
[334489975,1723164633692,-300.0,0.00017268,2]
[334489977,1723164633707,-1182.47236006,0.00017269,2]
[334489979,1723164633717,-420.0,0.00018995,2]
[334489981,1723164633727,-294.2333485,0.0002,2]
[334489983,1723164633736,-427.05357238,0.0002,2]
[334489986,1723164633748,-1444.35779383,0.0002,2]
[334489987,1723164633757,-215.00533212,0.0002,2]
[334489988,1723164633767,-2110.0,0.0002,2]
[334489989,1723164633776,-154.83997154,0.0002,2]
[334489990,1723164633786,-186.889413,0.00020707,2]
[334489991,1723164633796,-167.567879,0.00020885,2]
[334489992,1723164633805,-587.0,0.00020894,2]
[334489993,1723164633815,-297.10158311,0.00021,2]
[334489994,1723164633826,-154.77557542,0.00021011,2]
[334489995,1723164633836,-494.46439567,0.00021906,2]
[334489996,1723164633846,-121.90578199,0.00021916,2]
[334490095,1723164640605,-686.59364774,0.0001571,2]
[334490096,1723164640615,-32.9007099,0.00021916,2]
[334490097,1723164640625,-160.57653845,0.00022,2]
[334490098,1723164640634,-173.0,0.00022,2]
[334490099,1723164640643,-5261.47013064,0.00022054,2]
[334490100,1723164640653,-881.97401853,0.0002217,2]
[334490101,1723164640662,-5106.48495472,0.00022451,2]
[334490103,1723164641109,-154.98517592,0.00022451,2]
[334490105,1723164641120,-5261.47013064,0.00022716,2]
[334490107,1723164641130,-5261.47013064,0.00022894,2]
[334490109,1723164641141,-5696.60426282,0.00022899,2]
[334490111,1723164641152,-566.0,0.00022983,2]
[334490113,1723164641163,-500.0,0.00022999,2]
[334490115,1723164641173,-500.0,0.00022999,2]
[334490117,1723164641184,-500.0,0.00022999,2]
[334490119,1723164641194,-500.0,0.00022999,2]
[334490121,1723164641207,-650.0,0.00022999,2]
[334490123,1723164641216,-500.0,0.00022999,2]
[334490125,1723164641225,-19575.70230973,0.00023,10]
[334490127,1723164641234,-173.0,0.00023014,2]
[334490129,1723164641244,-5261.47013064,0.00023092,2]
[334490131,1723164641254,-5261.47013064,0.0002345,2]
[334490133,1723164641263,-160.0,0.00023671,3]
[334490134,1723164641272,-153.0,0.00023772,2]
[334490136,1723164641282,-153.0,0.00023772,2]
[334490138,1723164641292,-153.0,0.00023772,2]
[334490140,1723164641301,-153.0,0.00023772,2]
[334490142,1723164641311,-153.0,0.00023772,2]
[334490144,1723164641321,-153.0,0.00023772,2]
[334490146,1723164641332,-5261.47013064,0.00023773,2]
[334490148,1723164641341,-6050.00585104,0.000239,2]
[334490150,1723164641351,-5261.47013064,0.00023993,2]
[334490153,1723164641362,-4350.92455896,0.00024,30]
[334490155,1723164641372,-160.0,0.00024056,4]
[334490157,1723164641382,-5261.47013064,0.00024307,2]
[334490159,1723164641392,-160.0,0.0002444,5]
[334490161,1723164641402,-5261.47013064,0.00024648,2]
[334490163,1723164641412,-288.3473829,0.00024658,2]
[334490165,1723164641423,-267.747436,0.00024658,2]
[334490167,1723164641433,-267.747436,0.00024658,2]
[334490169,1723164641442,-267.747436,0.00024658,2]
[334490171,1723164641455,-539.1160522,0.00024658,2]
[334490173,1723164641465,-267.747436,0.00024658,2]
[334490175,1723164641474,-401.9397545,0.00024658,2]
[334490177,1723164641484,-153.0,0.00024743,2]
[334490179,1723164641495,-153.0,0.00024743,2]
[334490180,1723164641507,-153.0,0.00024743,2]
[334490182,1723164641516,-153.0,0.00024743,2]
[334490184,1723164641525,-153.0,0.00024743,2]
[334490185,1723164641535,-153.0,0.00024743,2]
[334490186,1723164641545,-153.0,0.00024743,2]
[334490187,1723164641555,-153.0,0.00024743,2]
[334490188,1723164641565,-153.0,0.00024743,2]
[334490189,1723164641575,-153.0,0.00024743,2]
[334490190,1723164641586,-153.0,0.00024743,2]
[334490191,1723164641596,-13424.47,0.00024746,3]
[334490192,1723164641606,-5696.6042628,0.00024756,2]
[334490193,1723164641614,-153.0,0.00024795,2]
[334490194,1723164641624,-153.0,0.00024795,2]
[334490195,1723164641633,-153.0,0.00024795,2]
[334490196,1723164641642,-267.747436,0.00024795,2]
[334490197,1723164641652,-153.0,0.00024795,2]
[334490198,1723164641662,-153.0,0.00024795,2]
[334490199,1723164641671,-29260.6550125,0.00024805,3]
[334490200,1723164641681,-5261.47013064,0.00024824,2]
[334490201,1723164641690,-160.0,0.00024825,6]
[334490202,1723164641700,-150.0,0.0002485,2]
[334490203,1723164641712,-29260.6550125,0.0002487,3]
[334490204,1723164641722,-17213.15511797,0.0002488,2]
[334490205,1723164641733,-36206.51345288,0.000249,11]
[334490228,1723164643349,-3806.95590563,0.000249,11]
[334490230,1723164643359,-424.24415384,0.000249,2]
[334490237,1723164643465,-2649.88424224,0.000249,2]
[334490238,1723164643475,-183.0,0.00024932,2]
[334490239,1723164643485,-150.0,0.00024966,2]
[334490240,1723164643497,-500.0,0.00024979,2]
[334490241,1723164643508,-500.0,0.00024979,2]
[334490242,1723164643518,-500.0,0.00024979,2]
[334490243,1723164643528,-585.2643687,0.00024979,2]
[334490244,1723164643539,-500.0,0.00024979,2]
[334490245,1723164643548,-500.0,0.00024979,2]
[334490246,1723164643558,-151.0,0.00024979,7]
[334490247,1723164643567,-151.0,0.00024979,7]
[334490248,1723164643576,-174.808849,0.00024979,7]
[334490249,1723164643588,-174.808849,0.00024979,7]
[334490250,1723164643598,-29260.6550125,0.0002498,3]
[334490251,1723164643608,-157.62019,0.0002498,7]
[334490252,1723164643619,-157.62019,0.0002498,7]
[334490253,1723164643630,-151.0,0.0002498,7]
[334490254,1723164643641,-151.0,0.0002498,7]
[334490255,1723164643651,-151.0,0.0002498,7]
[334490256,1723164643664,-538.31107842,0.00024989,2]
[334490257,1723164643673,-538.31107842,0.00024989,2]
[334490258,1723164643683,-538.31107842,0.00024989,2]
[334490259,1723164643693,-538.31107842,0.00024989,2]
[334490261,1723164643703,-538.31107842,0.00024989,2]
[334490263,1723164643714,-538.31107842,0.00024989,2]
[334490265,1723164643724,-538.31107842,0.00024989,2]
[334490267,1723164643734,-538.31107842,0.00024989,2]
[334490269,1723164643744,-320.06058595,0.00024989,2]
[334490271,1723164643753,-500.0,0.00024989,2]
[334490273,1723164643763,-312.81205904,0.00024989,2]
[334490275,1723164643773,-538.31107842,0.00024989,2]
[334490277,1723164643782,-538.31107842,0.00024989,2]
[334490279,1723164643791,-538.31107842,0.00024989,2]
[334490281,1723164643801,-545.73605881,0.00024989,2]
[334490283,1723164643810,-545.73605881,0.00024989,2]
[334490285,1723164643820,-538.31107842,0.00024989,2]
[334490287,1723164643829,-545.73605881,0.00024989,2]
[334490289,1723164643839,-545.73605881,0.00024989,2]
[334490291,1723164643848,-538.31107842,0.00024989,2]
[334490293,1723164643858,-545.73605881,0.00024989,2]
[334490295,1723164643867,-545.73605881,0.00024989,2]
[334490297,1723164643878,-545.73605881,0.00024989,2]
[334490299,1723164643887,-545.73605881,0.00024989,2]
[334490302,1723164643898,-545.73605881,0.00024989,2]
[334490304,1723164643911,-545.73605881,0.00024989,2]
[334490306,1723164643921,-545.73605881,0.00024989,2]
[334490308,1723164643931,-545.73605881,0.00024989,2]
[334490310,1723164643942,-545.73605881,0.00024989,2]
[334490312,1723164643951,-281.02286958,0.00024989,11]
[334490684,1723164647808,-13394.46178841,0.00024989,11]
[334491158,1723164941509,178.583218,0.00014247,2]
[334491182,1723165475210,222.7453,0.00014247,2]
[334491183,1723165482730,196.44,0.0001501,2]
[334491187,1723165577179,154.79092116,0.0001501,2]
[334491188,1723165596251,159.27209445,9.999e-05,2]
[334491189,1723165605427,356.53097519,9.999e-05,2]
[334491191,1723165608071,155.12544532,9.999e-05,2]
[334491192,1723165611692,532.14086008,9.999e-05,2]
[334491193,1723165614393,166.1450681,9.999e-05,2]
[334491194,1723165647472,686.59364774,0.00014999,2]
[334491195,1723165654321,287.82937614,0.0001,2]
[334491196,1723165679726,306.20026734,0.0001212,2]
[334491197,1723165693969,686.59364774,0.00013,2]
[334491198,1723165697055,201.51336171,9.999e-05,2]
[334491199,1723165718190,-5236.41679691,0.00015851,2]
[334491200,1723165718215,-301.12995539,0.00015851,2]
[334491201,1723165718239,-300.0,0.00015951,2]
[334491202,1723165718263,-300.0,0.00015951,2]
[334491203,1723165718931,519.71041987,0.00015708,2]
[334491204,1723165752977,686.59364774,0.00013,2]
[334491214,1723165814987,686.59364774,0.00015757,2]
[334491273,1723165832936,-250.38146921,0.00017269,2]
[334491274,1723165832961,-250.38146921,0.00017269,2]
[334491275,1723165832973,-912.9067075,0.0001904,2]
[334491276,1723165832985,-180.51285937,0.00019451,2]
[334491277,1723165832998,-932.36255016,0.00019477,2]
[334491278,1723165833013,-160.1642143,0.00019477,2]
[334491279,1723165833027,-816.39879119,0.00019999,2]
[334491280,1723165833041,-294.2333485,0.0002,2]
[334491281,1723165833055,-427.19488527,0.0002,2]
[334491282,1723165833067,-154.94664795,0.0002,2]
[334491283,1723165833080,-567.38635391,0.0002,2]
[334491284,1723165833093,-1444.35779383,0.0002,2]
[334491285,1723165833104,-178.583218,0.00020707,2]
[334491286,1723165833114,-297.10158211,0.00021,2]
[334491287,1723165833127,-171.6669387,0.00021558,2]
[334491288,1723165833140,-267.58987944,0.00021599,2]
[334491289,1723165833152,-111.73268567,0.00022,2]
[334491290,1723165833188,-221.46054738,0.00022,2]
[334491291,1723165833209,-160.64700877,0.00022,2]
[334491292,1723165833221,-173.0,0.00022,2]
[334491293,1723165833233,-964.6818275,0.0002268,2]
[334491346,1723165838819,-154.77557542,0.00021048,2]
[334491348,1723165838830,-0.01769718,0.0002268,2]
[334491350,1723165838841,-500.0,0.00022754,2]
[334491352,1723165838852,-173.0,0.00023014,2]
[334491354,1723165838863,-153.0,0.00023425,2]
[334491356,1723165838876,-153.0,0.00023425,2]
[334491358,1723165838886,-153.0,0.00023425,2]
[334491361,1723165838897,-5261.47013064,0.00023581,2]
[334491363,1723165838907,-153.0,0.00023705,2]
[334491365,1723165838918,-153.0,0.00023705,2]
[334491366,1723165838929,-153.0,0.00023705,2]
[334491369,1723165838940,-153.0,0.00023705,2]
[334491371,1723165838957,-637.23497623,0.00023814,2]
[334491373,1723165838972,-153.0,0.00023941,2]
[334491376,1723165838983,-207.1717265,0.00023973,2]
[334491379,1723165838994,-207.1717265,0.00023973,2]
[334491382,1723165839004,-414.343453,0.00023973,2]
[334491386,1723165839014,-153.0,0.00023978,2]
[334491389,1723165839026,-4350.92455896,0.00024,30]
[334491392,1723165839037,-153.0,0.00024041,2]
[334491395,1723165839047,-5261.47013064,0.00024053,2]
[334491398,1723165839056,-207.1717265,0.00024078,2]
[334491401,1723165839066,-306.0,0.00024178,2]
[334491404,1723165839075,-382.8207795,0.00024178,2]
[334491407,1723165839085,-153.0,0.00024192,2]
[334491410,1723165839095,-5261.47013064,0.00024219,2]
[334491412,1723165839105,-153.0,0.00024384,2]
[334491414,1723165839114,-5261.47013064,0.00024395,2]
[334491416,1723165839125,-160.0,0.00024633,3]
[334491418,1723165839135,-153.0,0.00024664,2]
[334491420,1723165839145,-153.0,0.00024664,2]
[334491421,1723165839154,-153.0,0.00024664,2]
[334491423,1723165839164,-153.0,0.00024664,2]
[334491425,1723165839174,-153.0,0.00024664,2]
[334491426,1723165839184,-153.0,0.00024664,2]
[334491428,1723165839197,-153.0,0.00024664,2]
[334491430,1723165839206,-153.0,0.00024664,2]
[334491432,1723165839216,-350.0,0.00024666,2]
[334491434,1723165839225,-5261.47013068,0.00024667,2]
[334491446,1723165839472,-645.58514283,0.00024706,2]
[334491447,1723165839489,-16707.33,0.0002474,3]
[334491450,1723165839499,-16862.46,0.00024748,3]
[334491451,1723165839508,-17213.15511797,0.00024749,2]
[334491453,1723165839517,-171.94,0.0002475,3]
[334491456,1723165839527,-515.84,0.0002475,3]
[334491458,1723165839538,-20234.96,0.00024758,3]
[334491460,1723165839547,-343.87,0.00024759,3]
[334491462,1723165839557,-687.75,0.0002476,3]
[334491464,1723165839566,-60381.87906581,0.00024768,3]
[334491466,1723165839576,-3044.58202193,0.00024778,2]
[334491468,1723165839585,-17213.15511795,0.00024779,2]
[334491470,1723165839595,-38109.99140569,0.0002478,11]
[334491472,1723165839604,-41030.0502591,0.0002478,3]
[334491473,1723165839613,-294.4971025,0.00024795,2]
[334491474,1723165839623,-211.6458597,0.00024795,2]
[334491475,1723165839632,-411.9550516,0.00024795,2]
[334491476,1723165839642,-150.112233,0.000248,3]
[334491477,1723165839653,-17213.15511795,0.00024809,2]
[334491478,1723165839663,-224.04241016,0.00024837,2]
[334491479,1723165839672,-568.96844133,0.00024837,2]
[334491480,1723165839682,-198.55798383,0.00024837,2]
[334491481,1723165839692,-500.0,0.00024837,2]
[334491482,1723165839703,-500.0,0.00024837,2]
[334491483,1723165839711,-500.0,0.00024837,2]
[334491484,1723165839721,-500.0,0.00024837,2]
[334491485,1723165839734,-500.0,0.00024837,2]
[334491486,1723165839743,-500.0,0.00024837,2]
[334491487,1723165839753,-500.0,0.00024837,2]
[334491488,1723165839763,-500.0,0.00024837,2]
[334491489,1723165839772,-500.0,0.00024837,2]
[334491490,1723165839781,-500.0,0.00024837,2]
[334491491,1723165839790,-500.0,0.00024837,2]
[334491492,1723165839799,-500.0,0.00024837,2]
[334491493,1723165839809,-500.0,0.00024837,2]
[334491494,1723165839818,-151.0,0.00024838,7]
[334491495,1723165839827,-17213.15511795,0.00024838,2]
[334491496,1723165839836,-41030.0502591,0.00024839,3]
[334491497,1723165839845,-151.0,0.00024849,7]
[334491498,1723165839854,-295.506019,0.00024849,7]
[334491499,1723165839864,-295.506019,0.00024849,7]
[334491500,1723165839877,-21506.22707575,0.00024857,11]
[334491501,1723165839886,-151.0,0.00024857,7]
[334491502,1723165839896,-41030.0502591,0.00024858,3]
[334491503,1723165839906,-326.412797,0.00024858,7]
[334491504,1723165839915,-326.412797,0.00024858,7]
[334491505,1723165839924,-207.758285,0.00024858,7]
[334491506,1723165839934,-207.758285,0.00024858,7]
[334491507,1723165839947,-726.843308,0.00024858,7]
[334491508,1723165839956,-726.843308,0.00024858,7]
[334491509,1723165839965,-151.0,0.00024858,7]
[334491510,1723165839975,-2000.0,0.00024868,2]
[334491511,1723165839984,-246.45386,0.00024868,7]
[334491512,1723165839993,-246.45386,0.00024868,7]
[334491513,1723165840002,-246.45386,0.00024868,7]
[334491514,1723165840012,-246.45386,0.00024868,7]
[334491515,1723165840021,-151.0,0.00024868,7]
[334491516,1723165840030,-151.0,0.00024868,7]
[334491517,1723165840040,-151.0,0.00024868,7]
[334491518,1723165840049,-151.0,0.00024868,7]
[334491519,1723165840059,-380.45576,0.00024868,7]
[334491521,1723165840070,-380.45576,0.00024868,7]
[334491522,1723165840080,-380.45576,0.00024868,7]
[334491523,1723165840090,-380.45576,0.00024868,7]
[334491524,1723165840099,-207.800566,0.00024868,7]
[334491525,1723165840108,-207.800566,0.00024868,7]
[334491526,1723165840118,-207.800566,0.00024868,7]
[334491527,1723165840128,-207.800566,0.00024868,7]
[334491528,1723165840137,-151.0,0.00024868,7]
[334491529,1723165840146,-295.506019,0.00024868,7]
[334491530,1723165840155,-295.506019,0.00024868,7]
[334491531,1723165840165,-3512.55770478,0.00024868,2]
[334491532,1723165840674,-5596.44893255,0.00024868,2]
[334491533,1723165841100,-274.14,0.00024868,2]
[334491547,1723165843212,-294.4971025,0.00023973,2]
[334491549,1723165843222,-151.0,0.00024838,7]
[334491553,1723165843232,-151.661857,0.00024838,7]
[334491557,1723165843242,-151.0,0.00024857,7]
[334491559,1723165843251,-209.409681,0.00024858,7]
[334491561,1723165843261,-528.527905,0.00024858,7]
[334491563,1723165843270,-7830.00848062,0.00024868,2]
[334491565,1723165843280,-151.0,0.00024868,2]
[334491567,1723165843289,-151.0,0.00024868,7]
[334491569,1723165843298,-151.0,0.00024868,7]
[334491570,1723165843307,-151.0,0.00024868,7]
[334491572,1723165843317,-151.0,0.00024868,7]
[334491574,1723165843326,-151.0,0.00024868,7]
[334491576,1723165843335,-326.799009,0.00024868,7]
[334491577,1723165843345,-326.412797,0.00024868,7]
[334491579,1723165843354,-326.799009,0.00024868,7]
[334491581,1723165843363,-326.412797,0.00024868,7]
[334491583,1723165843373,-207.758285,0.00024868,7]
[334491585,1723165843382,-207.758285,0.00024868,7]
[334491587,1723165843391,-726.843308,0.00024868,7]
[334491588,1723165843400,-726.843308,0.00024868,7]
[334491590,1723165843410,-151.0,0.00024868,7]
[334491591,1723165843420,-151.0,0.00024868,7]
[334491593,1723165843429,-151.0,0.00024868,7]
[334491594,1723165843438,-209.409681,0.00024868,7]
[334491595,1723165843450,-151.0,0.00024868,7]
[334491596,1723165843460,-151.0,0.00024868,7]
[334491597,1723165843469,-528.527905,0.00024868,7]
[334491598,1723165843479,-82060.1005183,0.00024868,3]
[334491599,1723165843489,-71204.23423239,0.00024878,2]
[334491605,1723165843694,-4709.47795748,0.00024878,2]
[334491607,1723165843705,-151.0,0.00024878,7]
[334491609,1723165843715,-151.0,0.00024878,7]